[Event "21st Open Gran Hotel Bali-A 2024"]
[Site "Benidorm"]
[Date "2024.11.30"]
[Round "2.12"]
[White "Gonzalez Martinez, Miguel Angel"]
[Black "Domingo Nunez, Ruben"]
[Result "0-1"]
[ECO "A47"]
[WhiteElo "2158"]
[BlackElo "2409"]
[Annotator "TA"]
[PlyCount "108"]
[EventDate "2024.11.26"]
[EventType "swiss"]
[EventCountry "ESP"]
[SourceTitle "playchess.com"]
[Source "ChessBase"]
[SourceQuality "1"]
[TimeControl "5400+30"]

{[%evp 23,108,0,0,-9,17,-10,0,-47,-11,-14,-11,-7,0,0,38,-92,-99,-78,-25,-27,-20,-8,-9,-95,-20,-23,-20,-23,0,-45,-21,-35,-26,-250,-228,-377,-377,-502,-305,-259,-161,-316,57,52,63,49,66,0,0,0,0,0,47,67,68,11,10,14,88,25,57,37,39,41,49,12,12,9,8,8,10,0,0,-33,-33,-29975,-29977,-29977,-29978,-29978,-29978,-29978,-29979,-29979,-29980,-29980,-29981]} 1. d4 {[%emt 0:00:02]} Nf6 {[%emt 0:06:17]} 2. Nf3 {[%emt 0:00:04]} b6 {[%emt 0:00:35]} 3. Bf4 {[%emt 0:00:10]} Bb7 {[%emt 0:00:06]} 4. e3 {[%emt 0:00:03]} Nh5 {[%emt 0:03:00]} 5. Bg5 {[%emt 0:04:01]} h6 {[%emt 0:00:15]} 6. Bh4 {[%emt 0:00:04]} g5 {[%emt 0:00:03]} 7. Ne5 {[%emt 0:00:43]} Nf6 {[%emt 0:03:09]} 8. Bg3 {[%emt 0:00:05]} d6 {[%emt 0:00:02]} 9. Nf3 {[%emt 0:00:55]} Ne4 {[%emt 0:01:58]} 10. Nbd2 {[%emt 0:00:41]} Nxg3 {[%emt 0:00:29]} 11. hxg3 {[%emt 0:00:06]} Bg7 {[%emt 0:00:09]} 12. c3 {[%emt 0:08:08]} e6 {[%emt 0:00:28]} 13. a4 {[%emt 0:00:15]} a5 {[%emt 0:10:09]} 14. Qc2 {[%emt 0:03:45]} Nd7 {[%emt 0:00:54]} 15. Nc4 {[%emt 0:00:12]} (15. O-O-O $11) 15... f5 {[%emt 0:11:10]} 16. Bd3 {[%emt 0:09:01]} Nf6 {[%emt 0:07:33]} 17. Ncd2 {[%emt 0:01:37]} Qe7 {[%emt 0:25:14]} 18. e4 {[%emt 0:03:45]} e5 {[%emt 0:03:57]} 19. Kf1 {[%emt 0:09:55]} (19. O-O $14 {stays ahead.}) 19... O-O-O $1 $17 {[%emt 0:00:00]} 20. Re1 {[%emt 0:05:40]} (20. exf5 e4 21. Bb5 exf3 22. gxf3 Kb8 $19) 20... fxe4 {[%emt 0:10:28]} (20... Rhe8 $1 $17) 21. Nxe4 $11 {[%emt 0:00:44]} Kb8 {[%emt 0:00:05]} 22. Nxf6 {[%emt 0:03:03]} Bxf6 {[%emt 0:00:16]} 23. Kg1 {[%emt 0:01:49]} (23. dxe5 $11 dxe5 24. Be4) 23... h5 {[%emt 0:04:11]} ({Better is} 23... g4 $1 $17 {[%cal Rg4f3]} 24. Nh4 e4) 24. dxe5 $11 {[%emt 0:00:47]} dxe5 {[%emt 0:00:06]} 25. Be4 {[%emt 0:01:01]} Ba6 {[%emt 0:01:39]} 26. Nd2 {[%emt 0:17:26]} h4 {[%emt 0:05:04]} 27. gxh4 {[%emt 0:05:17]} gxh4 {[%emt 0:00:28]} 28. Bf3 $2 {[%emt 0:00:09]} (28. b4 $11) 28... Bd3 $19 {[%emt 0:00:13]} 29. Qb3 {[%emt 0:01:32] [#]} (29. Qd1 {was forced.}) 29... h3 $1 $19 {[%emt 0:03:24]} 30. g3 {[%emt 0:01:36]} Qd7 {[%emt 0:03:09]} 31. c4 {[%emt 0:13:45]} Qd4 {[%emt 0:00:54]} 32. Be4 $2 {[%emt 0:01:19] [#]} (32. Qc3) 32... Bxe4 $2 {[%emt 0:00:32]} (32... h2+ $1 $19 33. Kg2 Bg5 34. Qxd3 Qxd3 (34... Bxd2 35. Qxd4 Rxd4 36. Re2 $16) (34... Qxb2 35. Bd5 $16) 35. Bxd3 Bxd2 36. Rxe5 Rxd3) 33. Nxe4 $14 {[%emt 0:00:15]} Be7 {[%emt 0:00:01]} 34. Kh2 {[%emt 0:00:19]} Rhf8 {[%emt 0:01:00]} 35. Rhf1 {[%emt 0:01:20]} (35. Kxh3 Rh8+ 36. Kg2 Rxh1 37. Kxh1 Bb4 $19) (35. Re2 $14) 35... Bb4 $11 {[%emt 0:00:18]} 36. Re2 {[%emt 0:00:04]} Qd7 {[%emt 0:00:03]} 37. c5 {[%emt 0:00:31]} Qc6 {[%emt 0:01:41]} (37... b5 $11 {is more appropriate.}) 38. cxb6 $14 {[%emt 0:00:28]} cxb6 {[%emt 0:00:00]} 39. Qe3 {[%emt 0:00:12]} (39. f3 $14) 39... Rd4 $11 {[%emt 0:00:27]} 40. f3 {[%emt 0:02:13]} Qd5 {[%emt 0:00:31]} (40... Qxa4 $11 {remains equal.} 41. Nc3 Qd7) 41. Ng5 {[%emt 0:01:10]} ({White should play} 41. Nc3 $16 Qc5 42. Qh6 (42. Qxe5+ Qxe5 43. Rxe5 Bxc3 $11) (42. Kxh3 Rh8+ 43. Kg2 Bxc3 $14)) 41... Bd6 {[%emt 0:01:02]} 42. Ne6 {[%emt 0:00:58]} Rg8 {[%emt 0:00:00]} (42... Qxe6 $2 {perishes.} 43. Qxd4 Bc7 44. Qe4 $18) 43. Nxd4 {[%emt 0:00:49]} exd4 {[%emt 0:00:00]} 44. Qe6 {[%emt 0:00:48]} Bxg3+ {[%emt 0:00:02]} 45. Kh1 $1 {[%emt 0:00:15]} Qxe6 $1 {[%emt 0:01:19]} 46. Rxe6 {[%emt 0:00:04]} d3 $1 {[%emt 0:00:35]} 47. Rxb6+ {[%emt 0:02:35]} Kc7 {[%emt 0:00:25]} 48. Rb3 {[%emt 0:00:03]} d2 {[%emt 0:00:03]} 49. Rd1 $2 {[%emt 0:00:20][%mdl 8192]} (49. Rc3+ $15 Kb6 50. f4) 49... Re8 {[%emt 0:00:16]} 50. Rc3+ {[%emt 0:00:43]} Kb6 {[%emt 0:00:06]} 51. Rcc1 {[%emt 0:01:19]} dxc1=Q {[%emt 0:01:00]} 52. Rxc1 {[%emt 0:00:08]} Re1+ {[%emt 0:00:49]} 53. Rxe1 {[%emt 0:00:05]} Bxe1 {[%emt 0:00:01]} 54. Kh2 {[%emt 0:00:04]} Kc5 {[%emt 0:00:03]} 0-1

[Event "21st Open Gran Hotel Bali-A 2024"]
[Site "Benidorm"]
[Date "2024.11.30"]
[Round "2.13"]
[White "Gramb, Marius"]
[Black "Del Rio De Angelis, Salvador G."]
[Result "1/2-1/2"]
[ECO "B22"]
[WhiteElo "2147"]
[BlackElo "2400"]
[Annotator "TA"]
[PlyCount "84"]
[EventDate "2024.11.26"]
[EventType "swiss"]
[EventCountry "ESP"]
[SourceTitle "playchess.com"]
[Source "ChessBase"]
[SourceQuality "1"]
[TimeControl "5400+30"]

{[%evp 10,84,35,14,23,0,4,5,33,0,-7,-5,0,-15,-8,-18,-31,-37,-14,-38,-28,-95,-38,-35,0,0,0,-28,-6,-31,-23,-24,0,0,0,-7,0,8,8,11,25,0,16,0,0,-16,0,-23,-17,-8,-9,-2,-2,-10,19,3,20,27,30,21,32,4,42,0,0,0,0,0,0,-68,48,0,0,-47,37,0,0]} 1. e4 {[%emt 0:02:11]} c5 {[%emt 0:04:40]} 2. Nf3 {[%emt 0:00:05]} e6 {[%emt 0:00:08]} 3. c3 {[%emt 0:00:14]} d5 {[%emt 0:00:28]} 4. exd5 {[%emt 0:00:05]} exd5 {[%emt 0:00:05]} 5. d4 {[%emt 0:00:43]} a6 {[%emt 0:00:16]} 6. Be3 {[%emt 0:04:51]} c4 {[%emt 0:03:39]} 7. g3 {[%emt 0:07:29]} Bd6 {[%emt 0:03:03]} 8. Bg2 {[%emt 0:01:36]} Ne7 {[%emt 0:00:08]} 9. O-O {[%emt 0:02:15]} Nbc6 {[%emt 0:07:11]} 10. b3 {[%emt 0:10:25]} b5 {[%emt 0:01:09]} 11. Nh4 {[%emt 0:03:36]} O-O {[%emt 0:06:37]} 12. a4 {[%emt 0:03:29]} Be6 {[%emt 0:01:19]} 13. b4 {[%emt 0:04:07]} Qd7 {[%emt 0:03:02]} 14. Re1 {[%emt 0:03:50]} f6 {[%emt 0:05:32]} 15. f4 {[%emt 0:03:10]} (15. Bf3 $11 {remains equal.}) 15... Kh8 {[%emt 0:03:51]} (15... Bg4 $17 16. Bf3 Bxf3 17. Nxf3 Rfb8) 16. Nd2 {[%emt 0:01:29][%cal Bb1d2,Bd2f1,Bf1e3][%mdl 32]} Bc7 {[%emt 0:03:18]} 17. axb5 {[%emt 0:03:08]} axb5 {[%emt 0:00:10]} 18. Qf3 {[%emt 0:01:14]} Rad8 {[%emt 0:01:57][%cal Og7g5] ...g5! poses a challenge} 19. Bf2 {[%emt 0:05:31]} Bg4 {[%emt 0:08:52]} 20. Qe3 {[%emt 0:00:12]} Nc8 {[%emt 0:00:16][%cal Be7c8,Bc8b6,Bb6a4][%mdl 32] and ...Rfe8 would now be decisive} 21. Nf1 {[%emt 0:01:42]} Nb6 {[%emt 0:01:15]} 22. Qd2 {[%emt 0:00:52]} Na4 {[%emt 0:01:19]} 23. Ne3 {[%emt 0:05:00]} Be6 {[%emt 0:00:07]} 24. f5 {[%emt 0:04:48]} Bf7 {[%emt 0:00:10]} 25. Bf3 {[%emt 0:02:02]} Ne7 {[%emt 0:01:30]} (25... Bd6 $5) 26. Bd1 {[%emt 0:04:03]} Nc8 {[%emt 0:01:55]} 27. Bc2 {[%emt 0:02:22][%cal Oh4g6]} Rfe8 {[%emt 0:01:41]} 28. Neg2 {[%emt 0:02:41]} Rxe1+ {[%emt 0:02:43]} 29. Rxe1 {[%emt 0:00:36]} Re8 {[%emt 0:00:49]} 30. Be3 {[%emt 0:02:44]} Nd6 {[%emt 0:05:34]} 31. Bf4 {[%emt 0:04:51]} Bb6 {[%emt 0:00:53]} 32. Rxe8+ {[%emt 0:06:54]} Bxe8 {[%emt 0:00:11]} 33. Bxd6 {[%emt 0:02:46]} Qxd6 {[%emt 0:00:06]} 34. Nf4 {[%emt 0:00:54]} Bf7 {[%emt 0:03:28]} 35. Kf2 {[%emt 0:01:52]} Kg8 {[%emt 0:04:28]} 36. Bb1 {[%emt 0:02:39]} Qe7 {[%emt 0:01:09]} 37. Nhg2 {[%emt 0:00:59]} Bc7 {[%emt 0:04:43]} 38. Bc2 {[%emt 0:00:40]} Qe8 {[%emt 0:03:29]} 39. Bd1 {[%emt 0:01:11]} (39. Ne2 $11) 39... Qd7 {[%emt 0:06:57]} (39... Bxf4 $15 40. Nxf4 Qe4) 40. Bc2 {[%emt 0:00:30]} (40. Bg4 $14) 40... Qe8 $11 {[%emt 0:03:29]} 41. Bd1 {[%emt 0:00:08]} (41. h4 $11 {was preferable.}) 41... Qc8 {[%emt 0:01:15]} (41... Bxf4 $15 42. gxf4 (42. Nxf4 Qe4 $17) 42... h6) 42. Bc2 {[%emt 0:00:16]} Qe8 {[%emt 0:01:01]} 1/2-1/2

[Event "21st Open Gran Hotel Bali-A 2024"]
[Site "Benidorm"]
[Date "2024.11.30"]
[Round "2.14"]
[White "Stella, Andrea"]
[Black "Voiteanu, Gabriel"]
[Result "1-0"]
[ECO "D12"]
[WhiteElo "2398"]
[BlackElo "2132"]
[Annotator "TA"]
[PlyCount "103"]
[EventDate "2024.11.26"]
[EventType "swiss"]
[EventCountry "ESP"]
[SourceTitle "playchess.com"]
[Source "ChessBase"]
[SourceQuality "1"]
[TimeControl "5400+30"]

{[%evp 12,103,35,27,37,18,38,10,21,10,25,18,45,26,34,41,47,39,45,37,31,22,27,26,32,16,26,22,20,22,22,24,20,0,29,10,28,29,27,8,20,27,29,29,47,32,52,26,107,105,125,121,140,52,63,60,63,62,63,63,63,63,63,20,20,24,64,64,181,183,177,173,160,177,369,367,373,320,383,361,407,407,519,555,543,524,1116,1089,1081,1063,29966,29970,5289,5026]} 1. d4 {[%emt 0:12:05]} d5 {[%emt 0:01:25]} 2. c4 {[%emt 0:00:10]} c6 {[%emt 0:00:09]} 3. Nf3 {[%emt 0:00:08]} Nf6 {[%emt 0:00:08]} 4. e3 {[%emt 0:00:10]} Bf5 {[%emt 0:00:51]} 5. Nc3 {[%emt 0:00:09]} e6 {[%emt 0:00:21]} 6. Nh4 {[%emt 0:00:22]} Be4 {[%emt 0:00:31]} 7. f3 {[%emt 0:00:28]} Bg6 {[%emt 0:00:09]} 8. Bd2 {[%emt 0:03:30]} Nbd7 {[%emt 0:02:07]} 9. Nxg6 {[%emt 0:00:32]} hxg6 {[%emt 0:00:06] The position is equal.} 10. Qc2 {[%emt 0:00:05]} Bd6 {[%emt 0:03:17]} 11. O-O-O {[%emt 0:00:58][%cal Be1c1,Bc1c2,Bc2b1][%mdl 32]} Qc7 {[%emt 0:07:25]} 12. cxd5 {[%emt 0:02:42]} cxd5 {[%emt 0:09:30][%cal Oa7a6]} 13. Nb5 {[%emt 0:17:59]} Qxc2+ {[%emt 0:00:55]} 14. Kxc2 {[%emt 0:00:01]} Rc8+ {[%emt 0:05:56]} 15. Kb1 {[%emt 0:05:46]} Bb8 {[%emt 0:00:52][%cal Oa7a6]} 16. Bb4 {[%emt 0:03:58]} Nb6 {[%emt 0:02:57]} 17. b3 {[%emt 0:07:58]} Rc6 {[%emt 0:06:55][%cal Oa7a6] Repels Nd6+} 18. h3 {[%emt 0:01:29]} a6 {[%emt 0:04:30]} 19. Nc3 {[%emt 0:00:43]} Bd6 {[%emt 0:10:36]} 20. Bxd6 {[%emt 0:00:09]} Rxd6 {[%emt 0:00:02]} 21. Bd3 {[%emt 0:00:05]} Rc6 {[%emt 0:00:43]} 22. Ne2 {[%emt 0:00:38]} Ke7 {[%emt 0:00:39]} 23. Rc1 {[%emt 0:00:20] Threatening Rxc6.} Rhc8 {[%emt 0:00:14]} 24. Rxc6 {[%emt 0:00:14]} Rxc6 {[%emt 0:00:05]} 25. Kb2 {[%emt 0:01:21]} Ne8 {[%emt 0:06:13]} 26. h4 {[%emt 0:01:35]} Nd6 {[%emt 0:00:40]} 27. g4 {[%emt 0:02:06]} a5 {[%emt 0:00:49][%cal Ba6a5,Ba5a4][%mdl 32]} 28. Nf4 {[%emt 0:03:28]} a4 {[%emt 0:02:09]} 29. g5 {[%emt 0:01:06]} Nf5 {[%emt 0:05:40]} (29... Nd7 $11) 30. Bxf5 $16 {[%emt 0:01:31]} gxf5 {[%emt 0:00:02][%mdl 4096] Endgame. KRN-KRN} 31. h5 {[%emt 0:01:33]} Rc8 {[%emt 0:01:30]} 32. h6 {[%emt 0:00:49]} (32. Nd3 $16) 32... gxh6 $1 $14 {[%emt 0:01:23]} 33. Rxh6 {[%emt 0:00:41]} ({But not} 33. gxh6 $6 Rh8 $16) 33... axb3 {[%emt 0:04:08]} 34. axb3 {[%emt 0:00:05]} Rg8 {[%emt 0:01:34]} 35. g6 {[%emt 0:00:32]} fxg6 {[%emt 0:01:11]} 36. Nxg6+ {[%emt 0:00:55]} Kd6 {[%emt 0:00:26]} 37. Nf4 {[%emt 0:02:20]} Re8 {[%emt 0:00:20]} 38. Kc3 {[%emt 0:00:18]} Nd7 {[%emt 0:03:33]} 39. Kb4 {[%emt 0:04:39]} Nf8 {[%emt 0:00:18]} (39... Nb6 $1 $14) 40. Rh8 $18 {[%emt 0:01:22]} Ke7 {[%emt 0:02:06]} 41. Kb5 {[%emt 0:06:31]} Kf7 {[%emt 0:00:35]} 42. Nd3 {[%emt 0:00:50] White is much more active.} Ra8 $2 {[%emt 0:03:41] [#]} (42... Kg7 43. Rh2 f4) 43. Ne5+ {[%emt 0:02:48]} Kg7 {[%emt 0:00:39]} 44. Rh1 {[%emt 0:00:25]} Ra3 {[%emt 0:02:39]} 45. Kb4 {[%emt 0:01:21]} Ra2 {[%emt 0:01:19]} 46. Rg1+ {[%emt 0:02:10]} Kh7 {[%emt 0:02:35]} 47. Kc5 {[%emt 0:00:56]} Kh6 {[%emt 0:05:12]} 48. Kd6 {[%emt 0:03:20]} Re2 {[%emt 0:00:57]} 49. Ke7 {[%emt 0:00:46] [#] White wants to mate with Nf7+.} Nh7 {[%emt 0:00:11]} 50. Kxe6 {[%emt 0:00:05]} Rxe3 {[%emt 0:01:38]} 51. Kxf5 {[%emt 0:00:04]} Nf8 {[%emt 0:00:53]} 52. Ng4+ {[%emt 0:00:06] Weighted Error Value: White=0.09 (flawless) /Black=0.41.  Mistake:       	White=1     	Black=3      Inaccurate:     	White=3     	Black=4      OK:         	White=16    	Black=12     Best:        	White=4     	Black=3      Strong:       	---       	Black=1} 1-0

[Event "21st Open Gran Hotel Bali-A 2024"]
[Site "Benidorm"]
[Date "2024.11.30"]
[Round "2.15"]
[White "Evenshaug, Amadeus Hestvik"]
[Black "Vega Gutierrez, Sabrina"]
[Result "1-0"]
[ECO "B33"]
[WhiteElo "2132"]
[BlackElo "2385"]
[Annotator "TA"]
[PlyCount "55"]
[EventDate "2024.11.26"]
[EventType "swiss"]
[EventCountry "ESP"]
[SourceTitle "playchess.com"]
[Source "ChessBase"]
[SourceQuality "1"]
[TimeControl "5400+30"]

{[%evp 28,55,46,-21,-20,-16,-6,-19,-16,-53,-43,-45,100,71,257,169,256,258,272,261,752,757,723,770,755,760,763,775,749,739]} 1. e4 {[%emt 0:01:48]} c5 {[%emt 0:01:00]} 2. Nf3 {[%emt 0:00:34]} Nc6 {[%emt 0:00:11]} 3. d4 {[%emt 0:00:23]} cxd4 {[%emt 0:00:07]} 4. Nxd4 {[%emt 0:00:06]} Nf6 {[%emt 0:00:06]} 5. Nc3 {[%emt 0:00:17]} e5 {[%emt 0:00:11]} 6. Ndb5 {[%emt 0:00:32]} d6 {[%emt 0:00:20]} 7. Bg5 {[%emt 0:01:10]} a6 {[%emt 0:00:07]} 8. Na3 {[%emt 0:00:24]} b5 {[%emt 0:00:08]} 9. Bxf6 {[%emt 0:01:45]} gxf6 {[%emt 0:00:19]} 10. Nd5 {[%emt 0:00:10]} Bg7 {[%emt 0:00:18]} 11. c3 {[%emt 0:00:20]} f5 {[%emt 0:00:32]} 12. exf5 {[%emt 0:00:28]} Bxf5 {[%emt 0:00:09]} 13. Nc2 {[%emt 0:00:09]} O-O {[%emt 0:00:31]} 14. Nce3 {[%emt 0:00:23]} Be6 {[%emt 0:00:27]} 15. g4 {[%emt 0:01:16]} (15. Bd3 $14) 15... b4 $11 {[%emt 0:03:44]} 16. Bg2 {[%emt 0:00:41][%cal Bf1g2,Bg2e4,Be4h7,Bh7f5][%mdl 32]} bxc3 {[%emt 0:01:29]} 17. bxc3 {[%emt 0:00:22]} Rc8 {[%emt 0:01:13]} 18. Qd3 {[%emt 0:02:21] [#]} e4 $1 {[%emt 0:06:39]} 19. Bxe4 {[%emt 0:04:44]} (19. Qxe4 $2 Bxd5 20. Qxd5 (20. Nxd5 $2 Re8 $19) 20... Bxc3+ 21. Ke2 Nd4+ 22. Kd3 Rc5 $19) 19... Bxd5 {[%emt 0:13:17]} (19... Ne5 $15 20. Qxa6 (20. Bxh7+ Kh8 $17) 20... Nxg4 (20... Bxg4 21. O-O $14) 21. Nxg4 f5 (21... Bxg4 22. O-O $11) (21... Qh4 22. h3 $17)) 20. Nxd5 {[%emt 0:10:23]} ({But not} 20. Bxd5 Nb4 21. cxb4 Bxa1 $15) 20... Qg5 $2 {[%emt 0:19:14]} (20... Qh4 $16) 21. Bxh7+ $18 {[%emt 0:16:15]} Kh8 {[%emt 0:00:17]} 22. Bf5 {[%emt 0:00:30] aiming for Qh3+.} Rfe8+ {[%emt 0:10:50]} 23. Kf1 {[%emt 0:01:08]} Rcd8 $2 {[%emt 0:22:37]} (23... Rb8 24. h4 (24. Qxa6 Nb4 $18) 24... Qd8) 24. h4 {[%emt 0:02:39]} Qh6 {[%emt 0:01:34]} 25. g5 {[%emt 0:00:09]} Qh5 {[%emt 0:00:36]} 26. Nf4 {[%emt 0:00:08][%cal Bd5f4,Bf4h5,Bh5g7][%mdl 32]} ({Weaker is} 26. Qxa6 Qf3 27. Rh3 Qxd5 $17 (27... Qxf5 28. Qd3 $17)) 26... Ne5 {[%emt 0:00:07]} 27. Nxh5 {[%emt 0:00:11]} Nxd3 {[%emt 0:00:02]} 28. Nxg7 {[%emt 0:00:18]} 1-0

[Event "21st Open Gran Hotel Bali-A 2024"]
[Site "Benidorm"]
[Date "2024.11.30"]
[Round "2.16"]
[White "Trigo Urquijo, Sergio"]
[Black "Rey Malde, Henrique"]
[Result "1-0"]
[ECO "E49"]
[WhiteElo "2370"]
[BlackElo "2118"]
[Annotator "TA"]
[PlyCount "99"]
[EventDate "2024.11.26"]
[EventType "swiss"]
[EventCountry "ESP"]
[SourceTitle "playchess.com"]
[Source "ChessBase"]
[SourceQuality "1"]
[TimeControl "5400+30"]

{[%evp 26,99,10,-25,-19,-24,0,0,12,0,0,-18,14,0,53,36,29,32,29,0,3,0,7,0,0,0,0,0,0,0,0,-7,0,0,33,0,0,0,25,20,8,12,22,11,77,106,194,166,218,226,231,193,193,190,193,193,379,358,379,379,410,355,397,350,422,412,421,406,409,407,429,431,420,415,463,462]} 1. d4 {[%emt 0:00:03]} d5 {[%emt 0:06:12]} 2. c4 {[%emt 0:00:18]} e6 {[%emt 0:00:09]} 3. Nc3 {[%emt 0:00:24]} Bb4 {[%emt 0:00:17]} 4. e3 {[%emt 0:00:45]} Nf6 {[%emt 0:00:20]} 5. a3 {[%emt 0:01:50]} Bxc3+ {[%emt 0:00:13]} 6. bxc3 {[%emt 0:00:08]} O-O {[%emt 0:00:20]} 7. Bd3 {[%emt 0:01:07]} c5 {[%emt 0:00:40]} 8. Ne2 {[%emt 0:01:34]} b6 {[%emt 0:01:55]} 9. cxd5 {[%emt 0:03:53]} exd5 {[%emt 0:00:08]} 10. O-O {[%emt 0:01:56]} Ba6 {[%emt 0:00:12]} 11. f3 {[%emt 0:05:41]} Re8 {[%emt 0:00:39]} 12. Ng3 {[%emt 0:03:56]} Bxd3 {[%emt 0:00:14]} 13. Qxd3 {[%emt 0:00:07]} Nc6 {[%emt 0:00:07]} 14. Ra2 {[%emt 0:04:38]} Qd7 {[%emt 0:00:29]} 15. Re2 {[%emt 0:05:51]} cxd4 {[%emt 0:03:08]} 16. cxd4 {[%emt 0:01:02]} Rad8 {[%emt 0:06:07] The position is equal.} 17. Bb2 {[%emt 0:02:29]} h5 {[%emt 0:02:40]} 18. Rd1 {[%emt 0:07:05]} g6 {[%emt 0:03:51]} 19. e4 {[%emt 0:08:17]} h4 {[%emt 0:13:04]} ({Black should play} 19... Rc8 $11) 20. Nh1 $14 {[%emt 0:00:12]} Nh5 {[%emt 0:08:38]} 21. Qd2 {[%emt 0:01:01] Prevents Nf4} Na5 {[%emt 0:14:12][%cal Bc6a5,Ba5c4,Bc4b2][%mdl 32]} 22. Qg5 {[%emt 0:07:11]} Qe7 {[%emt 0:02:14]} 23. Bc1 {[%emt 0:00:38][%cal Bb2c1,Bc1g5,Bg5h4][%mdl 32]} (23. Qxe7 {simplifies} Rxe7 24. Nf2 Nc4 25. Bc1) 23... Nc4 {[%emt 0:11:44]} 24. a4 {[%emt 0:06:22]} (24. Qg4 {looks sharper.} dxe4 25. Rxe4 Ne5 26. Qg5) 24... Qxg5 {[%emt 0:06:59]} 25. Bxg5 {[%emt 0:00:08]} f6 {[%emt 0:00:08]} 26. Bxh4 {[%emt 0:00:53]} Nf4 {[%emt 0:00:04]} 27. Ree1 {[%emt 0:05:02]} g5 {[%emt 0:00:18]} 28. Bg3 {[%emt 0:05:32]} Nb2 {[%emt 0:00:06] A dynamic duo of knights.} 29. Rd2 {[%emt 0:01:37] aiming for Bxf4.} Nxa4 {[%emt 0:05:30]} 30. Bxf4 {[%emt 0:01:07]} gxf4 {[%emt 0:00:02]} 31. Nf2 {[%emt 0:00:14]} b5 {[%emt 0:00:47]} 32. Ng4 {[%emt 0:02:59]} Kg7 {[%emt 0:00:45]} 33. e5 {[%emt 0:00:14]} fxe5 {[%emt 0:00:24]} 34. dxe5 {[%emt 0:00:06] Black must now prevent Nf6.} Re6 {[%emt 0:02:49]} (34... d4 $11 {remains equal.}) 35. Nf6 $16 {[%emt 0:01:48] And now Nh5+ would win. White stays focused until the end.} Nb6 {[%emt 0:01:15]} (35... Nc3 $16) 36. Nh5+ $18 {[%emt 0:02:53]} Kh6 {[%emt 0:02:07]} (36... Kg8 $142) 37. Nxf4 {[%emt 0:00:19]} Re7 {[%emt 0:00:01]} 38. e6 {[%emt 0:01:32]} b4 {[%emt 0:02:55]} 39. Ra1 {[%emt 0:06:54]} d4 {[%emt 0:03:04][%cal Bd5d4,Bd4d3][%mdl 32] [#]} 40. Rb2 $1 {[%emt 0:03:45]} a5 $2 {[%emt 0:04:12]} (40... Rf8 {might work better.}) 41. Rxa5 {[%emt 0:01:19]} d3 {[%emt 0:00:23] ...d2 is the strong threat.} 42. Rd2 {[%emt 0:01:15]} (42. Rxb4 d2 43. Rb1 (43. Rxb6 $2 d1=Q+ 44. Kf2 Qd2+ 45. Kg3 Qxa5 $19) (43. Rh5+ Kg7 $15) 43... d1=R+ (43... d1=Q+ 44. Rxd1 Rxd1+ 45. Kf2 $15) 44. Rxd1 Rxd1+ 45. Kf2 Rd2+ 46. Kg3 Rd4 47. Rh5+ Kg7 $17) 42... Rd4 {[%emt 0:00:53]} 43. Rh5+ {[%emt 0:01:54]} (43. Nxd3 Nc4 (43... Rxe6 44. Ra6 $16) 44. Ne5 Nxd2 $17) 43... Kg7 {[%emt 0:00:01]} 44. g3 {[%emt 0:00:08]} (44. Rxd3 Rxf4 45. Rg5+ Kf6 $15) (44. Nxd3 Nc4 45. Rc2 Ne3 $11) 44... b3 {[%emt 0:01:40]} 45. Rb5 {[%emt 0:01:01]} ({Less strong is} 45. Rxd3 Rb4 $18) ({Not} 45. Nxd3 Nc4 46. Rd1 Ne3 $11) 45... Nc4 {[%emt 0:00:29]} 46. Rxd3 {[%emt 0:00:24]} Rxd3 {[%emt 0:00:33]} 47. Nxd3 {[%emt 0:00:06]} Nd2 {[%emt 0:00:01]} 48. Kf2 {[%emt 0:01:29]} Rxe6 {[%emt 0:00:07]} 49. Rb7+ {[%emt 0:00:54]} Kf6 {[%emt 0:01:12]} 50. Nc5 {[%emt 0:00:16][%csl LRb3,LRe6] Weighted Error Value: White=0.08 (flawless) /Black=0.28 (precise) .  Mistake:       	---       	Black=5      Inaccurate:     	White=2     	Black=2      OK:         	White=16    	Black=14     Best:        	White=3     	Black=1} 1-0

[Event "21st Open Gran Hotel Bali-A 2024"]
[Site "Benidorm"]
[Date "2024.11.30"]
[Round "2.17"]
[White "Diez Fraile, David"]
[Black "Prado Lobo, Jonas"]
[Result "0-1"]
[ECO "A01"]
[WhiteElo "2115"]
[BlackElo "2360"]
[Annotator "TA"]
[PlyCount "62"]
[EventDate "2024.11.26"]
[EventType "swiss"]
[EventCountry "ESP"]
[SourceTitle "playchess.com"]
[Source "ChessBase"]
[SourceQuality "1"]
[TimeControl "5400+30"]

{[%evp 9,62,7,8,22,22,13,10,0,15,0,0,-26,0,-11,-11,-14,-19,-56,-51,-53,-43,-64,-64,-88,-76,-163,-158,-158,-137,-228,-255,-370,-375,-407,-395,-408,-414,-584,-589,-590,-620,-631,-618,-725,-654,-701,-701,-1143,-533,-1279,-1273,-29978,-29979,-29971,-29970]} 1. b3 {[%emt 0:06:42]} d5 {[%emt 0:01:16]} 2. Bb2 {[%emt 0:00:06]} Bf5 {[%emt 0:00:33]} 3. d3 {[%emt 0:00:18]} e6 {[%emt 0:00:49]} 4. Nd2 {[%emt 0:00:55]} Nf6 {[%emt 0:01:25]} 5. g3 {[%emt 0:01:34]} h6 {[%emt 0:04:41]} 6. Bg2 {[%emt 0:00:30]} Bh7 {[%emt 0:01:22]} 7. a3 {[%emt 0:13:20]} Be7 {[%emt 0:00:59]} 8. e4 {[%emt 0:01:07]} c5 {[%emt 0:05:25]} 9. Ne2 {[%emt 0:08:28]} Nc6 {[%emt 0:14:50]} 10. O-O {[%emt 0:05:46]} O-O {[%emt 0:01:49]} 11. Nf4 {[%emt 0:08:39]} d4 {[%emt 0:02:02]} 12. Nf3 {[%emt 0:11:16]} Qc7 {[%emt 0:08:27]} 13. Qd2 {[%emt 0:05:53]} Rfd8 {[%emt 0:02:00]} 14. Ne2 {[%emt 0:04:05]} Rac8 {[%emt 0:01:30]} 15. c4 {[%emt 0:12:29]} a6 {[%emt 0:01:46]} 16. Ne1 {[%emt 0:04:09]} b5 {[%emt 0:01:46] Black is more active.} 17. cxb5 {[%emt 0:01:47]} (17. Qc2 $17) 17... axb5 $19 {[%emt 0:00:01][%cal Oc5c4]} 18. Rc1 {[%emt 0:00:57][%cal Ob3b4]} e5 {[%emt 0:03:38]} 19. f4 {[%emt 0:04:47]} (19. Bh3 $17) 19... Na5 {[%emt 0:06:41]} 20. fxe5 {[%emt 0:01:33]} (20. Qd1 $142 Ng4 21. Rf3) 20... Nxb3 {[%emt 0:02:14]} 21. Qf4 {[%emt 0:02:24]} Nxc1 {[%emt 0:00:02]} 22. Bxc1 {[%emt 0:00:57]} g5 {[%emt 0:00:32]} 23. exf6 {[%emt 0:00:40]} (23. Qf2 {was worth a try.} Qxe5 24. Nf3) 23... gxf4 {[%emt 0:00:18]} 24. fxe7 {[%emt 0:00:06]} Qxe7 {[%emt 0:00:19]} 25. Nxf4 {[%emt 0:01:41]} c4 {[%emt 0:01:12] Threatens to win with ...cxd3.} 26. Nh5 {[%emt 0:00:44]} cxd3 {[%emt 0:00:23]} 27. Nxd3 {[%emt 0:01:01]} Rc6 {[%emt 0:04:39] Repels Nf6+} 28. Nb4 {[%emt 0:01:14]} Rc5 {[%emt 0:00:01]} 29. Nd5 {[%emt 0:00:48] [#]} Rdxd5 $1 {[%emt 0:00:21]} 30. exd5 {[%emt 0:00:52] [#]} (30. Nf6+ Qxf6) 30... Rxc1 $1 {[%emt 0:00:01]} 31. Nf6+ {[%emt 0:00:09]} Qxf6 {[%emt 0:00:19]} 0-1